[Event "Live Chess"]
[Site "Chess.com"]
[Date "2023.05.20"]
[Round "-"]
[White "toxic_rabbit"]
[Black "Duke_of_Bebington"]
[Result "0-1"]
[WhiteElo "1988"]
[BlackElo "1566"]
[TimeControl "300"]
[EndTime "9:39:30 PDT"]
[Termination "Duke_of_Bebington won by checkmate"]

1. e4 {[%clk 0:04:59.1]} 1... e5 {[%clk 0:04:58.5]} 2. Nf3 {[%clk 0:04:58]} 2...
Nf6 {[%clk 0:04:57.7]} 3. Nxe5 {[%clk 0:04:57.1]} 3... d6 {[%clk 0:04:56.6]} 4.
Nf3 {[%clk 0:04:56.1]} 4... Nxe4 {[%clk 0:04:56.1]} 5. d3 {[%clk 0:04:55.7]}
5... Nf6 {[%clk 0:04:54.6]} 6. Be2 {[%clk 0:04:55.2]} 6... Be7 {[%clk
0:04:51.9]} 7. O-O {[%clk 0:04:55.1]} 7... O-O {[%clk 0:04:50.9]} 8. c4 {[%clk
0:04:55]} 8... c6 {[%clk 0:04:44]} 9. Nc3 {[%clk 0:04:54]} 9... d5 {[%clk
0:04:42.4]} 10. cxd5 {[%clk 0:04:51.3]} 10... Nxd5 {[%clk 0:04:41.3]} 11. d4
{[%clk 0:04:51.2]} 11... Bf5 {[%clk 0:04:30.4]} 12. Bc4 {[%clk 0:04:49.8]} 12...
Be6 {[%clk 0:04:18]} 13. Qb3 {[%clk 0:04:45.6]} 13... Qd7 {[%clk 0:04:12.1]} 14.
Ne5 {[%clk 0:04:43.4]} 14... Qc7 {[%clk 0:03:56.9]} 15. Bxd5 {[%clk 0:04:37.8]}
15... Bxd5 {[%clk 0:03:51.3]} 16. Nxd5 {[%clk 0:04:35.9]} 16... cxd5 {[%clk
0:03:51]} 17. Qxd5 {[%clk 0:04:28.1]} 17... Nc6 {[%clk 0:03:49.3]} 18. Nxc6
{[%clk 0:04:25.6]} 18... Qxc6 {[%clk 0:03:47.1]} 19. Qxc6 {[%clk 0:04:24.6]}
19... bxc6 {[%clk 0:03:47]} 20. Be3 {[%clk 0:04:22.1]} 20... Rab8 {[%clk
0:03:42.1]} 21. b3 {[%clk 0:04:20.1]} 21... Bb4 {[%clk 0:03:38.3]} 22. Rac1
{[%clk 0:04:18.4]} 22... Rfc8 {[%clk 0:03:31.5]} 23. Bf4 {[%clk 0:04:15.4]}
23... Rb5 {[%clk 0:03:25.3]} 24. Rc4 {[%clk 0:04:11.9]} 24... Bf8 {[%clk
0:03:18.3]} 25. Rfc1 {[%clk 0:04:10.7]} 25... c5 {[%clk 0:03:13.3]} 26. Be3
{[%clk 0:03:52.1]} 26... Ra5 {[%clk 0:03:01.6]} 27. a4 {[%clk 0:03:48.3]} 27...
Rb8 {[%clk 0:02:57.4]} 28. dxc5 {[%clk 0:03:44.2]} 28... Rxb3 {[%clk 0:02:55.6]}
29. c6 {[%clk 0:03:44.1]} 29... Rb8 {[%clk 0:02:51.2]} 30. c7 {[%clk 0:03:41.7]}
30... Rc8 {[%clk 0:02:50.6]} 31. Rd1 {[%clk 0:03:40]} 31... Be7 {[%clk
0:02:47.9]} 32. Rb1 {[%clk 0:03:30.7]} 32... Rd5 {[%clk 0:02:33.4]} 33. Rb8
{[%clk 0:03:27.8]} 33... Rd1# {[%clk 0:02:31.4]} 0-1

[Event "Live Chess"]
[Site "Chess.com"]
[Date "2023.05.20"]
[Round "-"]
[White "Olisingapore"]
[Black "PureMellowPlan"]
[Result "1-0"]
[WhiteElo "1950"]
[BlackElo "604"]
[TimeControl "300"]
[EndTime "9:39:32 PDT"]
[Termination "Olisingapore won by resignation"]

1. d4 {[%clk 0:04:57.1]} 1... d5 {[%clk 0:04:55.9]} 2. c4 {[%clk 0:04:56.1]}
2... dxc4 {[%clk 0:04:53.8]} 3. Nf3 {[%clk 0:04:54.7]} 3... Nc6 {[%clk
0:04:51.6]} 4. e3 {[%clk 0:04:54.1]} 4... Nf6 {[%clk 0:04:47.7]} 5. Bxc4 {[%clk
0:04:53.6]} 5... Bg4 {[%clk 0:04:43.8]} 6. h3 {[%clk 0:04:51.3]} 6... Bxf3
{[%clk 0:04:43]} 7. Qxf3 {[%clk 0:04:51.1]} 7... Qd7 {[%clk 0:04:41.4]} 8. O-O
{[%clk 0:04:49.6]} 8... O-O-O {[%clk 0:04:39.6]} 9. Nc3 {[%clk 0:04:48]} 9... e5
{[%clk 0:04:32.4]} 10. d5 {[%clk 0:04:29.8]} 10... Ne7 {[%clk 0:04:20]} 11. e4
{[%clk 0:04:21.2]} 11... Ng6 {[%clk 0:04:14]} 12. Be3 {[%clk 0:04:18.6]} 12...
Bb4 {[%clk 0:04:10.3]} 13. Nb5 {[%clk 0:04:12.4]} 1-0

[Event "Live Chess"]
[Site "Chess.com"]
[Date "2023.05.20"]
[Round "-"]
[White "Balu13"]
[Black "Leonid_Starozhilov"]
[Result "0-1"]
[WhiteElo "835"]
[BlackElo "2666"]
[TimeControl "300"]
[EndTime "9:39:33 PDT"]
[Termination "Leonid_Starozhilov won by checkmate"]

1. e4 {[%clk 0:04:52.9]} 1... e5 {[%clk 0:04:56.9]} 2. Nf3 {[%clk 0:04:46.3]}
2... Nc6 {[%clk 0:04:55.7]} 3. Nc3 {[%clk 0:04:43.7]} 3... Nf6 {[%clk
0:04:53.4]} 4. d3 {[%clk 0:04:38.5]} 4... Bb4 {[%clk 0:04:50.7]} 5. Bd2 {[%clk
0:04:36.7]} 5... O-O {[%clk 0:04:48.2]} 6. a3 {[%clk 0:04:33.1]} 6... Bxc3
{[%clk 0:04:45.8]} 7. bxc3 {[%clk 0:04:30.7]} 7... d5 {[%clk 0:04:45.7]} 8. d4
{[%clk 0:04:08.6]} 8... Nxe4 {[%clk 0:04:38.8]} 9. Nxe5 {[%clk 0:03:59.4]} 9...
Nxe5 {[%clk 0:04:30.9]} 10. dxe5 {[%clk 0:03:52.8]} 10... Re8 {[%clk 0:04:30.2]}
11. f4 {[%clk 0:03:24.1]} 11... Qh4+ {[%clk 0:04:24.7]} 12. g3 {[%clk
0:03:13.7]} 12... Nxg3 {[%clk 0:04:11.9]} 13. Bg2 {[%clk 0:03:03.6]} 13... Ne4+
{[%clk 0:04:05.6]} 14. Kf1 {[%clk 0:02:52.6]} 14... Qf2# {[%clk 0:04:05.5]} 0-1

[Event "Live Chess"]
[Site "Chess.com"]
[Date "2023.05.20"]
[Round "-"]
[White "defenderalist"]
[Black "thrithik"]
[Result "1-0"]
[WhiteElo "1591"]
[BlackElo "483"]
[TimeControl "300"]
[EndTime "9:39:42 PDT"]
[Termination "defenderalist won by checkmate"]

1. e4 {[%clk 0:04:59.6]} 1... h6 {[%clk 0:04:58.5]} 2. Nf3 {[%clk 0:04:58.6]}
2... g6 {[%clk 0:04:57.4]} 3. Bc4 {[%clk 0:04:57.8]} 3... f6 {[%clk 0:04:56.2]}
4. Nc3 {[%clk 0:04:56]} 4... e6 {[%clk 0:04:54.9]} 5. e5 {[%clk 0:04:55]} 5...
Be7 {[%clk 0:04:52.6]} 6. exf6 {[%clk 0:04:53.9]} 6... Bxf6 {[%clk 0:04:49.5]}
7. d4 {[%clk 0:04:51.6]} 7... Qe7 {[%clk 0:04:47.4]} 8. O-O {[%clk 0:04:47]}
8... e5 {[%clk 0:04:46.6]} 9. dxe5 {[%clk 0:04:45.7]} 9... Bxe5 {[%clk
0:04:44.7]} 10. Nxe5 {[%clk 0:04:43.7]} 10... Qe6 {[%clk 0:04:42.6]} 11. Bxe6
{[%clk 0:04:41.8]} 11... dxe6 {[%clk 0:04:40.4]} 12. Nxg6 {[%clk 0:04:40.8]}
12... Rh7 {[%clk 0:04:38]} 13. f4 {[%clk 0:04:36.5]} 13... Rg7 {[%clk
0:04:33.5]} 14. Ne5 {[%clk 0:04:33.2]} 14... Rg5 {[%clk 0:04:28.1]} 15. fxg5
{[%clk 0:04:29.4]} 15... hxg5 {[%clk 0:04:26.5]} 16. Qh5+ {[%clk 0:04:28.5]}
16... Ke7 {[%clk 0:04:22.2]} 17. Ne4 {[%clk 0:04:25.7]} 17... Bd7 {[%clk
0:04:20.6]} 18. Qf7+ {[%clk 0:04:23.7]} 18... Kd8 {[%clk 0:04:16.8]} 19. Nxd7
{[%clk 0:04:18.5]} 19... Nxd7 {[%clk 0:04:12.4]} 20. Qxg8+ {[%clk 0:04:17.1]}
20... Ke7 {[%clk 0:04:10.6]} 21. Qxa8 {[%clk 0:04:15.3]} 21... Nb6 {[%clk
0:04:01.7]} 22. Bxg5+ {[%clk 0:04:13.8]} 22... Kd7 {[%clk 0:03:57.9]} 23. Qxb7
{[%clk 0:04:12.4]} 23... Nd5 {[%clk 0:03:52.6]} 24. Nf6+ {[%clk 0:04:08.7]}
24... Kd6 {[%clk 0:03:39.7]} 25. Nxd5 {[%clk 0:04:06.9]} 25... c6 {[%clk
0:03:35.4]} 26. Qe7+ {[%clk 0:04:02.3]} 26... Kxd5 {[%clk 0:03:31.5]} 27. Rad1+
{[%clk 0:04:01.3]} 27... Ke5 {[%clk 0:03:29.3]} 28. Rfe1+ {[%clk 0:03:59.3]}
28... Kf5 {[%clk 0:03:27.8]} 29. Qxe6+ {[%clk 0:03:58.4]} 29... Kxg5 {[%clk
0:03:25.3]} 30. Re5+ {[%clk 0:03:56.5]} 30... Kf4 {[%clk 0:03:23.4]} 31. Rd4#
{[%clk 0:03:55.9]} 1-0

[Event "Live Chess"]
[Site "Chess.com"]
[Date "2023.05.20"]
[Round "-"]
[White "Ra2orLeaf"]
[Black "aliciabutteriss"]
[Result "1-0"]
[WhiteElo "1148"]
[BlackElo "511"]
[TimeControl "300"]
[EndTime "9:39:46 PDT"]
[Termination "Ra2orLeaf won by checkmate"]

1. e4 {[%clk 0:04:51.8]} 1... c6 {[%clk 0:04:59.1]} 2. Nf3 {[%clk 0:04:51.5]}
2... d5 {[%clk 0:04:57.2]} 3. exd5 {[%clk 0:04:51.3]} 3... cxd5 {[%clk
0:04:56.1]} 4. d4 {[%clk 0:04:50.3]} 4... e6 {[%clk 0:04:49.6]} 5. Bd3 {[%clk
0:04:48.5]} 5... Nc6 {[%clk 0:04:39.2]} 6. Nbd2 {[%clk 0:04:47.5]} 6... Bd6
{[%clk 0:04:34.6]} 7. O-O {[%clk 0:04:38.8]} 7... Nf6 {[%clk 0:04:32]} 8. c3
{[%clk 0:04:26.2]} 8... O-O {[%clk 0:04:20.5]} 9. Re1 {[%clk 0:04:12.3]} 9...
Re8 {[%clk 0:04:15.1]} 10. Ne5 {[%clk 0:04:11.3]} 10... Bxe5 {[%clk 0:04:09.9]}
11. dxe5 {[%clk 0:04:11]} 11... Nxe5 {[%clk 0:04:02.2]} 12. Rxe5 {[%clk
0:04:08.7]} 12... Qd6 {[%clk 0:03:59.3]} 13. Nf3 {[%clk 0:03:53.2]} 13... h6
{[%clk 0:03:46.4]} 14. Bf4 {[%clk 0:03:31.5]} 14... Qb6 {[%clk 0:03:27.8]} 15.
Qc2 {[%clk 0:03:22]} 15... Bd7 {[%clk 0:03:19.6]} 16. b3 {[%clk 0:02:52.2]}
16... Rac8 {[%clk 0:03:05.8]} 17. Qd2 {[%clk 0:02:48.2]} 17... Ng4 {[%clk
0:02:50.9]} 18. Be3 {[%clk 0:02:31.4]} 18... Nxe5 {[%clk 0:02:45.8]} 19. Bxb6
{[%clk 0:02:30]} 19... Nxf3+ {[%clk 0:02:40.3]} 20. gxf3 {[%clk 0:02:29.9]}
20... axb6 {[%clk 0:02:34.6]} 21. Kh1 {[%clk 0:02:28.9]} 21... g6 {[%clk
0:02:25.4]} 22. Rg1 {[%clk 0:02:26.1]} 22... g5 {[%clk 0:02:18.3]} 23. f4 {[%clk
0:02:24.7]} 23... e5 {[%clk 0:02:06.2]} 24. fxg5 {[%clk 0:02:23.9]} 24... e4
{[%clk 0:01:54.3]} 25. gxh6+ {[%clk 0:02:14.3]} 25... Kh8 {[%clk 0:01:51.1]} 26.
Bxe4 {[%clk 0:02:13.1]} 26... dxe4 {[%clk 0:01:47.2]} 27. Qxd7 {[%clk
0:02:12.3]} 27... Rcd8 {[%clk 0:01:41.6]} 28. Qxf7 {[%clk 0:02:08.9]} 28... e3
{[%clk 0:01:25.5]} 29. Qg7# {[%clk 0:02:05.4]} 1-0

[Event "Live Chess"]
[Site "Chess.com"]
[Date "2023.05.20"]
[Round "-"]
[White "Greenbecker"]
[Black "Zeraora719"]
[Result "1-0"]
[WhiteElo "1708"]
[BlackElo "1239"]
[TimeControl "300"]
[EndTime "9:39:48 PDT"]
[Termination "Greenbecker won by checkmate"]

1. e4 {[%clk 0:04:58]} 1... e6 {[%clk 0:04:58]} 2. d4 {[%clk 0:04:56.2]} 2... d5
{[%clk 0:04:56.8]} 3. exd5 {[%clk 0:04:55.2]} 3... exd5 {[%clk 0:04:55.6]} 4.
Bd3 {[%clk 0:04:54.9]} 4... Qe7+ {[%clk 0:04:54]} 5. Qe2 {[%clk 0:04:52.7]} 5...
Qxe2+ {[%clk 0:04:52.6]} 6. Nxe2 {[%clk 0:04:51.9]} 6... g6 {[%clk 0:04:47.8]}
7. O-O {[%clk 0:04:50.8]} 7... Bg7 {[%clk 0:04:44.4]} 8. Re1 {[%clk 0:04:49.9]}
8... Nf6 {[%clk 0:04:40.1]} 9. Nf4+ {[%clk 0:04:47.6]} 9... Be6 {[%clk
0:04:36.6]} 10. Nxe6 {[%clk 0:04:42]} 10... Nc6 {[%clk 0:04:25.6]} 11. Nxc7+
{[%clk 0:04:36]} 11... Kd8 {[%clk 0:04:13.6]} 12. Nxa8 {[%clk 0:04:34.8]} 12...
Ng4 {[%clk 0:04:08.3]} 13. c3 {[%clk 0:04:25.5]} 13... f5 {[%clk 0:04:03.2]} 14.
Bg5+ {[%clk 0:04:23]} 14... Kc8 {[%clk 0:03:59.4]} 15. Nd2 {[%clk 0:04:16.9]}
15... Kb8 {[%clk 0:03:55]} 16. Nb6 {[%clk 0:04:14.3]} 16... axb6 {[%clk
0:03:53.6]} 17. h3 {[%clk 0:04:11.3]} 17... Kc7 {[%clk 0:03:50.3]} 18. hxg4
{[%clk 0:04:09.7]} 18... fxg4 {[%clk 0:03:48.1]} 19. Bb5 {[%clk 0:04:06.5]}
19... Kd7 {[%clk 0:03:44.3]} 20. Bxc6+ {[%clk 0:04:04.7]} 20... Kxc6 {[%clk
0:03:42.7]} 21. Re6+ {[%clk 0:03:56.1]} 21... Kd7 {[%clk 0:03:39.2]} 22. Re7+
{[%clk 0:03:54.7]} 22... Kd8 {[%clk 0:03:35.8]} 23. Rxg7+ {[%clk 0:03:52.4]}
23... Kc8 {[%clk 0:03:26.8]} 24. Re1 {[%clk 0:03:47.4]} 24... Kb8 {[%clk
0:03:22.6]} 25. Ree7 {[%clk 0:03:45.2]} 25... Rf8 {[%clk 0:03:08.5]} 26. Rxb7+
{[%clk 0:03:43.4]} 26... Kc8 {[%clk 0:03:05.9]} 27. Rgc7# {[%clk 0:03:41.3]} 1-0

[Event "Live Chess"]
[Site "Chess.com"]
[Date "2023.05.20"]
[Round "-"]
[White "guptarayan"]
[Black "AyannaTang"]
[Result "1-0"]
[WhiteElo "587"]
[BlackElo "176"]
[TimeControl "300"]
[EndTime "9:39:51 PDT"]
[Termination "guptarayan won by checkmate"]

1. e4 {[%clk 0:04:58.9]} 1... e5 {[%clk 0:04:58.4]} 2. Bc4 {[%clk 0:04:56.2]}
2... d5 {[%clk 0:04:55.2]} 3. Bxd5 {[%clk 0:04:54.2]} 3... c6 {[%clk 0:04:40.4]}
4. Bc4 {[%clk 0:04:52.7]} 4... Be6 {[%clk 0:04:37.3]} 5. Bxe6 {[%clk 0:04:47.8]}
5... fxe6 {[%clk 0:04:35.7]} 6. Qh5+ {[%clk 0:04:45.6]} 6... g6 {[%clk
0:04:27.8]} 7. Qxe5 {[%clk 0:04:43.6]} 7... Nf6 {[%clk 0:04:14.9]} 8. g4 {[%clk
0:04:38.1]} 8... Bd6 {[%clk 0:04:04.2]} 9. Qd4 {[%clk 0:04:30.5]} 9... O-O
{[%clk 0:03:59.8]} 10. g5 {[%clk 0:04:24.3]} 10... Ng4 {[%clk 0:03:43.6]} 11. e5
{[%clk 0:04:19.5]} 11... Bxe5 {[%clk 0:03:27]} 12. Qxg4 {[%clk 0:04:14.2]} 12...
Qd7 {[%clk 0:03:14]} 13. Nf3 {[%clk 0:04:09.9]} 13... Bh8 {[%clk 0:03:03.6]} 14.
d4 {[%clk 0:03:50]} 14... Qf7 {[%clk 0:02:58.2]} 15. c4 {[%clk 0:03:42.3]} 15...
Qxf3 {[%clk 0:02:54.3]} 16. Qxf3 {[%clk 0:03:38.3]} 16... Rxf3 {[%clk
0:02:52.3]} 17. Ke2 {[%clk 0:03:35.2]} 17... Rf8 {[%clk 0:02:42.6]} 18. Bd2
{[%clk 0:03:30.4]} 18... Na6 {[%clk 0:02:39.8]} 19. b4 {[%clk 0:03:27.7]} 19...
Nc7 {[%clk 0:02:36.5]} 20. b5 {[%clk 0:03:24.9]} 20... cxb5 {[%clk 0:02:34.9]}
21. cxb5 {[%clk 0:03:23.2]} 21... Nxb5 {[%clk 0:02:33.7]} 22. Bb4 {[%clk
0:03:22]} 22... Nxd4+ {[%clk 0:02:32]} 23. Ke3 {[%clk 0:03:19.6]} 23... Rfd8
{[%clk 0:02:21.2]} 24. Be7 {[%clk 0:03:14.8]} 24... Nc2+ {[%clk 0:02:11.7]} 25.
Kf4 {[%clk 0:03:10.1]} 25... Re8 {[%clk 0:02:07.2]} 26. Bf6 {[%clk 0:03:02]}
26... Bxf6 {[%clk 0:02:04.2]} 27. gxf6 {[%clk 0:03:00.1]} 27... Nxa1 {[%clk
0:02:02.3]} 28. Nc3 {[%clk 0:02:53.5]} 28... Nc2 {[%clk 0:01:57.8]} 29. Kg5
{[%clk 0:02:50.1]} 29... Rec8 {[%clk 0:01:54.7]} 30. h4 {[%clk 0:02:47.8]} 30...
Nb4 {[%clk 0:01:47.1]} 31. h5 {[%clk 0:02:46.2]} 31... gxh5 {[%clk 0:01:45.3]}
32. Rxh5 {[%clk 0:02:44.2]} 32... Nxa2 {[%clk 0:01:43.3]} 33. Nxa2 {[%clk
0:02:42.1]} 33... Rc2 {[%clk 0:01:40.9]} 34. Nb4 {[%clk 0:02:39.2]} 34... Rxf2
{[%clk 0:01:38.9]} 35. Rh4 {[%clk 0:02:32.2]} 35... Rg2+ {[%clk 0:01:37.4]} 36.
Kh6 {[%clk 0:02:28.3]} 36... Rc8 {[%clk 0:01:31.8]} 37. Re4 {[%clk 0:02:24.2]}
37... Rc3 {[%clk 0:01:29.3]} 38. Rh4 {[%clk 0:02:06.4]} 38... a5 {[%clk
0:01:20.8]} 39. Na2 {[%clk 0:01:54.5]} 39... Rf3 {[%clk 0:01:08.8]} 40. Kh5
{[%clk 0:01:43.7]} 40... Rxf6 {[%clk 0:01:02.2]} 41. Re4 {[%clk 0:01:35.3]}
41... Rf3 {[%clk 0:00:59.4]} 42. Rh4 {[%clk 0:01:25.6]} 42... a4 {[%clk
0:00:57.8]} 43. Nb4 {[%clk 0:01:17.4]} 43... a3 {[%clk 0:00:55.9]} 44. Kh6
{[%clk 0:01:13.6]} 44... a2 {[%clk 0:00:39.8]} 45. Nxa2 {[%clk 0:01:11.9]} 45...
Rxa2 {[%clk 0:00:38.3]} 46. Rg4+ {[%clk 0:01:07.6]} 46... Kh8 {[%clk 0:00:33.5]}
47. Rg7 {[%clk 0:00:51.6]} 47... Rff2 {[%clk 0:00:24.2]} 48. Rxb7 {[%clk
0:00:48.7]} 48... Ra3 {[%clk 0:00:21.1]} 49. Rb8+ {[%clk 0:00:46.2]} 49... Rf8
{[%clk 0:00:11.5]} 50. Rxf8# {[%clk 0:00:44.5]} 1-0

[Event "Live Chess"]
[Site "Chess.com"]
[Date "2023.05.20"]
[Round "-"]
[White "jagbama"]
[Black "seuen"]
[Result "0-1"]
[WhiteElo "1106"]
[BlackElo "1149"]
[TimeControl "300"]
[EndTime "9:39:53 PDT"]
[Termination "seuen won by resignation"]

1. e4 {[%clk 0:04:32.4]} 1... c5 {[%clk 0:04:58.1]} 2. Nf3 {[%clk 0:04:31]} 2...
Nc6 {[%clk 0:04:57]} 3. Bc4 {[%clk 0:04:30.1]} 3... e6 {[%clk 0:04:55.9]} 4. d3
{[%clk 0:04:29]} 4... d5 {[%clk 0:04:52.1]} 5. exd5 {[%clk 0:04:24.2]} 5... exd5
{[%clk 0:04:52]} 6. Qe2+ {[%clk 0:04:22.9]} 6... Be7 {[%clk 0:04:50.8]} 7. Bb5
{[%clk 0:04:20.2]} 7... Qa5+ {[%clk 0:04:47.2]} 8. Nc3 {[%clk 0:04:17.7]} 8...
d4 {[%clk 0:04:45.8]} 9. Bxc6+ {[%clk 0:04:14.4]} 9... bxc6 {[%clk 0:04:45.7]}
10. O-O {[%clk 0:04:04.5]} 10... dxc3 {[%clk 0:04:44.3]} 11. bxc3 {[%clk
0:04:04.1]} 11... Qxc3 {[%clk 0:04:39.3]} 12. Re1 {[%clk 0:04:02.4]} 12... Qxa1
{[%clk 0:04:33.6]} 13. Qxe7+ {[%clk 0:04:00.8]} 13... Nxe7 {[%clk 0:04:32.3]}
14. Rxe7+ {[%clk 0:04:00]} 14... Kxe7 {[%clk 0:04:31.5]} 15. Nd2 {[%clk
0:03:56.9]} 15... Qxc1+ {[%clk 0:04:30.2]} 0-1

[Event "Live Chess"]
[Site "Chess.com"]
[Date "2023.05.20"]
[Round "-"]
[White "peter-785"]
[Black "alanmike75"]
[Result "1-0"]
[WhiteElo "1161"]
[BlackElo "1492"]
[TimeControl "300"]
[EndTime "9:39:59 PDT"]
[Termination "peter-785 won on time"]

1. e4 {[%clk 0:04:54.2]} 1... e5 {[%clk 0:04:58.7]} 2. Nf3 {[%clk 0:04:53.1]}
2... Nc6 {[%clk 0:04:57.4]} 3. Bc4 {[%clk 0:04:52]} 3... Be7 {[%clk 0:04:55.8]}
4. d4 {[%clk 0:04:50.4]} 4... exd4 {[%clk 0:04:53.4]} 5. Nxd4 {[%clk 0:04:49.3]}
5... Nf6 {[%clk 0:04:45.6]} 6. Nxc6 {[%clk 0:04:44.3]} 6... dxc6 {[%clk
0:04:40.7]} 7. Qxd8+ {[%clk 0:04:38.8]} 7... Bxd8 {[%clk 0:04:38.6]} 8. Nc3
{[%clk 0:04:33.6]} 8... O-O {[%clk 0:04:31.9]} 9. O-O {[%clk 0:04:32.1]} 9...
Re8 {[%clk 0:04:14.6]} 10. Re1 {[%clk 0:04:20.1]} 10... Ng4 {[%clk 0:03:58.9]}
11. h3 {[%clk 0:04:08.8]} 11... Ne5 {[%clk 0:03:57.4]} 12. Bb3 {[%clk
0:04:02.6]} 12... c5 {[%clk 0:03:53.5]} 13. a3 {[%clk 0:03:58.7]} 13... c6
{[%clk 0:03:51.3]} 14. Bf4 {[%clk 0:03:54.4]} 14... Ng6 {[%clk 0:03:42.6]} 15.
Bg3 {[%clk 0:03:51.6]} 15... Be6 {[%clk 0:03:37.3]} 16. Bxe6 {[%clk 0:03:44.9]}
16... Rxe6 {[%clk 0:03:34.2]} 17. Rad1 {[%clk 0:03:33]} 17... Nf8 {[%clk
0:03:31.4]} 18. Kf1 {[%clk 0:03:23.6]} 18... Bb6 {[%clk 0:03:23.1]} 19. Na4
{[%clk 0:03:01.7]} 19... Rae8 {[%clk 0:03:21.1]} 20. Nxb6 {[%clk 0:02:56.1]}
20... axb6 {[%clk 0:03:19.5]} 21. f3 {[%clk 0:02:54.9]} 21... b5 {[%clk
0:03:16.7]} 22. Rd2 {[%clk 0:02:29.7]} 22... c4 {[%clk 0:03:13]} 23. c3 {[%clk
0:02:27.9]} 23... g6 {[%clk 0:03:07]} 24. Red1 {[%clk 0:02:26.7]} 24... Rf6
{[%clk 0:02:39.5]} 25. Kg1 {[%clk 0:02:16.7]} 25... g5 {[%clk 0:02:33.4]} 26.
Bd6 {[%clk 0:02:04.7]} 26... Ne6 {[%clk 0:02:15.5]} 27. e5 {[%clk 0:01:36.5]}
27... Rg6 {[%clk 0:02:05.7]} 28. Kh2 {[%clk 0:01:29.6]} 28... h5 {[%clk
0:02:02.9]} 29. Re2 {[%clk 0:01:20.7]} 29... g4 {[%clk 0:01:58.1]} 30. fxg4
{[%clk 0:01:15.7]} 30... hxg4 {[%clk 0:01:57]} 31. h4 {[%clk 0:01:05.4]} 31...
g3+ {[%clk 0:01:50.2]} 32. Kg1 {[%clk 0:00:59]} 32... Rg4 {[%clk 0:01:46.9]} 33.
Re3 {[%clk 0:00:54]} 33... Kh7 {[%clk 0:01:37]} 34. Rf1 {[%clk 0:00:51.2]} 34...
Nf4 {[%clk 0:01:08.8]} 35. e6 {[%clk 0:00:37.2]} 35... Rxe6 {[%clk 0:00:56.4]}
36. Rxe6 {[%clk 0:00:34.6]} 36... Nxe6 {[%clk 0:00:45.4]} 37. Rxf7+ {[%clk
0:00:31.3]} 37... Kg6 {[%clk 0:00:44.2]} 38. Rf3 {[%clk 0:00:22.4]} 38... Kh5
{[%clk 0:00:33.8]} 39. Rxg3 {[%clk 0:00:21.2]} 39... Rxh4 {[%clk 0:00:26.5]} 40.
Rh3 {[%clk 0:00:19.2]} 40... Rxh3 {[%clk 0:00:24]} 41. gxh3 {[%clk 0:00:18.3]}
41... Ng5 {[%clk 0:00:22]} 42. Kh2 {[%clk 0:00:16.1]} 42... Ne4 {[%clk
0:00:16.9]} 43. Bc7 {[%clk 0:00:12.6]} 43... Kh4 {[%clk 0:00:11.7]} 44. Bd8+
{[%clk 0:00:11.2]} 44... Kh5 {[%clk 0:00:10.4]} 45. h4 {[%clk 0:00:09.7]} 45...
Nf2 {[%clk 0:00:04.6]} 46. Kg2 {[%clk 0:00:08.6]} 46... Nd3 {[%clk 0:00:03.3]}
47. Kf1 {[%clk 0:00:03.6]} 47... Nxb2 {[%clk 0:00:01.9]} 48. Ke2 {[%clk
0:00:03]} 1-0

[Event "Live Chess"]
[Site "Chess.com"]
[Date "2023.05.20"]
[Round "-"]
[White "MartinWalker4"]
[Black "Horseymobile"]
[Result "1-0"]
[WhiteElo "2088"]
[BlackElo "1231"]
[TimeControl "300"]
[EndTime "9:40:08 PDT"]
[Termination "MartinWalker4 won by checkmate"]

1. e4 {[%clk 0:04:56.4]} 1... c6 {[%clk 0:04:59.3]} 2. d4 {[%clk 0:04:54.5]}
2... d5 {[%clk 0:04:58.7]} 3. exd5 {[%clk 0:04:53.5]} 3... cxd5 {[%clk 0:04:58]}
4. c4 {[%clk 0:04:52.4]} 4... Nf6 {[%clk 0:04:56.1]} 5. Nc3 {[%clk 0:04:50.6]}
5... Bf5 {[%clk 0:04:52.3]} 6. Qb3 {[%clk 0:04:44.4]} 6... e6 {[%clk 0:03:56.6]}
7. Qxb7 {[%clk 0:04:42]} 7... Nbd7 {[%clk 0:03:53.8]} 8. cxd5 {[%clk 0:04:40.3]}
8... exd5 {[%clk 0:03:45.2]} 9. Nxd5 {[%clk 0:04:38.2]} 9... Qa5+ {[%clk
0:03:34.9]} 10. Nc3 {[%clk 0:04:31.7]} 10... Rb8 {[%clk 0:03:27.5]} 11. Qf3
{[%clk 0:04:29.3]} 11... Bb4 {[%clk 0:03:22]} 12. Bd2 {[%clk 0:04:25.2]} 12...
O-O {[%clk 0:03:18.8]} 13. Bd3 {[%clk 0:04:09.3]} 13... Bg4 {[%clk 0:03:07.2]}
14. Qg3 {[%clk 0:04:01.6]} 14... Qb6 {[%clk 0:02:56.1]} 15. Nge2 {[%clk
0:03:51]} 15... Bd6 {[%clk 0:02:51.3]} 16. Qh4 {[%clk 0:03:45.7]} 16... Qxb2
{[%clk 0:02:32.8]} 17. Rb1 {[%clk 0:03:42.7]} 17... Qa3 {[%clk 0:02:21]} 18. O-O
{[%clk 0:03:40.6]} 18... Bxe2 {[%clk 0:02:06.7]} 19. Bxe2 {[%clk 0:03:32.6]}
19... Rfe8 {[%clk 0:01:55.2]} 20. Bd3 {[%clk 0:03:14]} 20... Nd5 {[%clk
0:01:39.1]} 21. Qxh7+ {[%clk 0:03:06.9]} 21... Kf8 {[%clk 0:01:38.1]} 22. Nxd5
{[%clk 0:03:05.1]} 22... Qxd3 {[%clk 0:01:36.1]} 23. Qh8# {[%clk 0:03:02.4]} 1-0

[Event "Live Chess"]
[Site "Chess.com"]
[Date "2023.05.20"]
[Round "-"]
[White "TheSmoulderingMaster"]
[Black "jameskwong"]
[Result "0-1"]
[WhiteElo "1789"]
[BlackElo "2178"]
[TimeControl "300"]
[EndTime "9:40:08 PDT"]
[Termination "jameskwong won by resignation"]

1. e4 {[%clk 0:04:59.2]} 1... c5 {[%clk 0:04:58.3]} 2. Nf3 {[%clk 0:04:58]} 2...
d6 {[%clk 0:04:57.3]} 3. d4 {[%clk 0:04:57.2]} 3... cxd4 {[%clk 0:04:56.4]} 4.
Nxd4 {[%clk 0:04:56.6]} 4... Nf6 {[%clk 0:04:55.7]} 5. Nc3 {[%clk 0:04:56]} 5...
Nc6 {[%clk 0:04:55]} 6. Be3 {[%clk 0:04:55]} 6... Ng4 {[%clk 0:04:52.9]} 7. Bg5
{[%clk 0:04:52.9]} 7... Qb6 {[%clk 0:04:48.8]} 8. Ncb5 {[%clk 0:04:42.2]} 8...
a6 {[%clk 0:04:38.2]} 9. Be2 {[%clk 0:04:31.6]} 9... axb5 {[%clk 0:04:32.5]} 10.
Bxg4 {[%clk 0:04:20.9]} 10... Bxg4 {[%clk 0:04:29.3]} 11. Qxg4 {[%clk
0:04:17.4]} 11... Nxd4 {[%clk 0:04:17.8]} 0-1